bitfinex-derivatives/quotes_SOLF0:USTF0_20250712
["timestamp","ask_amount","ask_price","bid_price","bid_amount"]
[1752352465304,5.55408193,160.18,160.17,3.64]
[1752352465505,11.79488193,160.18,160.17,3.64]
[1752352465705,5.55408193,160.18,160.17,9.8812]
[1752352465907,3.6,160.18,160.17,9.8812]
[1752352468106,3.6,160.18,160.17,3.64]
[1752352473618,5.55408193,160.18,160.17,3.64]
[1752352473820,11.79488193,160.18,160.17,3.64]
[1752352474218,5.55408193,160.18,160.17,3.64]
[1752352475417,3.6,160.18,160.17,9.8812]
[1752352478427,3.6,160.18,160.17,3.64]
[1752352479926,11.79488193,160.18,160.17,3.64]
[1752352480527,5.55408193,160.18,160.17,3.64]
[1752352483431,3.31,160.17,160.16,3.55]
[1752352483728,3.31,160.16,160.14,3.55]
[1752352483930,3.31,160.16,160.14,9.7921]
[1752352484128,3.31,160.16,160.15,3.55]
[1752352484430,5.26408193,160.16,160.15,3.55]
[1752352484733,3.31,160.15,160.13,3.55]
[1752352484932,3.31,160.14,160.13,3.55]
[1752352486030,3.31,160.14,160.13,9.7927]
[1752352488834,3.31,160.14,160.13,3.55]
[1752352491139,3.31,160.14,160.13,9.7927]
[1752352491340,3.31,160.14,160.13,3.55]
[1752352491540,5.26408193,160.14,160.13,3.55]
[1752352493142,5.26408193,160.14,160.13,9.7927]
[1752352493638,5.26408193,160.14,160.13,3.55]
[1752352495444,5.26408193,160.14,160.13,9.7927]
[1752352495940,3.31,160.14,160.13,9.7927]
[1752352500247,0.04218149,160.17,160.16,6.2416]
[1752352500548,3.35218149,160.17,160.16,3.55]
[1752352500746,11.54746342,160.17,160.12,1.95408193]
[1752352500946,5.26408193,160.16,160.15,9.792]
[1752352504648,3.31,160.16,160.15,9.792]
[1752352506151,5.29626342,160.17,160.16,6.2416]
[1752352506347,5.29626342,160.17,160.16,9.5816]
[1752352506744,3.34218149,160.17,160.16,9.5816]
[1752352506945,0.04218149,160.17,160.16,9.5816]
[1752352507549,3.34218149,160.17,160.16,9.5816]
[1752352507850,0.04218149,160.17,160.16,9.5816]
[1752352510949,0.04218149,160.17,160.16,11.53568193]
[1752352511248,0.04218149,160.17,160.16,9.5816]
[1752352516252,0.04218149,160.17,160.16,11.53568193]
[1752352526758,0.04218149,160.17,160.16,9.5816]
[1752352527365,3.34218149,160.17,160.16,9.5816]
[1752352527764,0.04218149,160.17,160.16,9.5816]
[1752352528361,0.04218149,160.17,160.16,11.53568193]
[1752352530666,0.04218149,160.17,160.16,9.5816]
[1752352531466,3.34218149,160.17,160.15,3.34]
[1752352531666,5.29626342,160.17,160.15,3.34]
[1752352531867,3.3,160.16,160.12,7.20072014]
[1752352532069,3.3,160.16,160.14,9.5821]
[1752352532956,3.3,160.15,160.14,3.34]
[1752352534765,3.3,160.15,160.14,9.5823]
[1752352536972,3.52,160.16,160.15,6.2419]
[1752352537273,3.52,160.16,160.15,9.5919]
[1752352544975,0.04218149,160.17,160.16,6.2416]
[1752352545176,3.56218149,160.17,160.16,9.5916]
[1752352565290,3.56218149,160.17,160.15,3.35]
[1752352566177,9.80338149,160.17,160.15,9.5917]
[1752352566379,3.32,160.16,160.15,9.5917]
[1752352567186,1.99842329,160.17,160.14,6.2422]
[1752352567385,3.32,160.16,160.15,3.32]
[1752352569389,3.32,160.16,160.15,9.5619]
[1752352588716,3.32,160.16,160.14,11.48883821]
[1752352588900,1.9561569,160.15,160.13,5.24663821]
[1752352589106,1.9561569,160.14,160.12,8.56663821]
[1752352589302,11.5188569,160.13,160.12,5.24663821]
[1752352590815,5.2761569,160.13,160.12,5.24663821]
[1752352592211,5.2761569,160.13,160.12,8.56663821]
[1752352593719,5.2761569,160.13,160.12,14.80973821]
[1752352594218,5.2761569,160.13,160.12,9.5631]
[1752352594219,3.32,160.13,160.12,9.5631]
[1752352594620,5.2761569,160.13,160.12,9.5631]
[1752352596212,3.32,160.13,160.12,9.5631]
[1752352596511,0.04218149,160.17,160.12,1.9561569]
[1752352596715,0.04218149,160.17,160.15,1.9561569]
[1752352596919,3.40218149,160.17,160.16,3.31]
[1752352597117,0.04218149,160.17,160.16,9.5515]
[1752352597317,3.40218149,160.17,160.16,9.5515]
[1752352611523,3.40218149,160.17,160.16,3.31]
[1752352616225,3.40218149,160.17,160.16,9.5515]
[1752352619830,0.04218149,160.17,160.16,11.5076569]
[1752352620627,3.40218149,160.17,160.16,11.5076569]
[1752352622028,3.40218149,160.17,160.16,9.5515]
[1752352625928,3.40218149,160.17,160.16,11.5076569]
[1752352628328,3.40218149,160.17,160.16,9.5515]
[1752352628526,3.40218149,160.17,160.16,11.5076569]
[1752352629131,3.40218149,160.17,160.16,5.2661569]
[1752352631832,3.40218149,160.17,160.16,9.5515]
[1752352632030,3.40218149,160.17,160.16,11.5076569]
[1752352637334,3.40218149,160.17,160.16,5.2661569]
[1752352643137,0.04218149,160.17,160.16,11.5076569]
[1752352644228,0.04218149,160.17,160.16,11.50677437]
[1752352645938,0.04218149,160.17,160.16,5.26527437]
[1752352646144,3.55218149,160.17,160.16,5.26527437]
[1752352651038,9.79338149,160.17,160.16,3.31]
[1752352658547,9.7915,160.16,160.15,5.29568072]
[1752352658740,9.7915,160.16,160.15,3.34]
[1752352659745,3.55,160.16,160.15,3.34]
[1752352661644,3.55,160.16,160.15,9.5819]
[1752352662847,3.55,160.16,160.15,11.53758072]
[1752352663344,0.04218149,160.17,160.15,8.19758072]
[1752352663543,3.59218149,160.17,160.16,3.34]
[1752352664752,3.59218149,160.17,160.16,9.5815]
[1752352674561,3.59218149,160.17,160.16,3.34]
[1752352676159,3.59218149,160.17,160.16,9.5816]
[1752352678863,9.83338149,160.17,160.16,3.34]
[1752352679057,3.59218149,160.17,160.16,3.34]
[1752352680464,3.59218149,160.17,160.16,9.5816]
[1752352680967,0.04218149,160.17,160.16,9.5816]
[1752352683160,3.55,160.2,160.19,9.5804]
[1752352683360,3.55,160.2,160.19,3.34]
[1752352684762,185.4392,160.22,160.19,3.34]
[1752352684964,3.55,160.23,160.22,3.34]
[1752352685264,6.2399,160.21,160.2,3.34]
[1752352685465,6.2399,160.21,160.19,3.34]
[1752352685666,3.55,160.2,160.19,3.34]
[1752352685866,3.55,160.2,160.19,3.387441]
[1752352688970,3.55,160.2,160.19,9.627841]
[1752352691074,11.67462109,160.2,160.19,0.047441]
[1752352691275,190.85462109,160.2,160.19,0.047441]
[1752352695277,6.2416,160.16,160.15,3.48]
[1752352695482,3.48,160.15,160.14,3.48]
[1752352695681,5.43462109,160.15,160.14,3.48]
[1752352697084,11.67652109,160.15,160.14,3.48]
[1752352697783,6.2428,160.13,160.11,13.4483954]
[1752352697977,3.48,160.13,160.11,6.2434]
[1752352698283,3.48,160.12,160.11,6.2434]
[1752352698883,3.48,160.12,160.11,9.7234]
[1752352699879,1.95462109,160.14,160.12,6.243]
[1752352700185,3.48,160.13,160.12,9.723]
[1752352700887,3.48,160.13,160.12,3.48]
[1752352702287,9.7227,160.13,160.12,3.48]
[1752352702889,3.48,160.13,160.12,3.48]
[1752352703789,3.48,160.13,160.12,9.7231]
[1752352704587,3.48,160.13,160.12,3.48]
[1752352704789,5.43462109,160.13,160.11,3.48]
[1752352704984,3.48,160.12,160.11,3.48]
[1752352705581,5.43462109,160.12,160.11,3.48]
[1752352706591,11.67772109,160.12,160.11,3.48]
[1752352712192,11.67772109,160.12,160.09,9.7242]
[1752352712393,3.48,160.09,160.06,3.48]
[1752352712592,1.95462109,160.07,160.06,9.7255]
[1752352712897,5.43462109,160.07,160.06,3.48]
[1752352714099,5.43462109,160.07,160.06,9.7255]
[1752352721704,3.48,160.07,160.06,9.7255]
[1752352721898,5.43462109,160.07,160.06,9.7255]
[1752352722700,3.48,160.07,160.06,9.7255]
[1752352727501,3.57,160.08,160.06,3.48]
[1752352727900,3.57,160.08,160.07,6.2451]
[1752352728106,5.52462109,160.08,160.07,9.8051]
[1752352730210,3.57,160.08,160.07,9.8051]
[1752352731710,0.04692843,160.09,160.08,9.8047]
[1752352731900,3.61692843,160.09,160.08,9.8047]
[1752352732103,3.57,160.09,160.08,9.8047]
[1752352735307,3.57,160.09,160.08,3.56]
[1752352739517,11.76892109,160.09,160.08,3.56]
[1752352739714,3.57,160.08,160.07,3.60131341]
[1752352743720,3.57,160.08,160.07,9.84641341]
[1752352751928,8.19922109,160.09,160.07,9.84641341]
[1752352752218,5.40462109,160.09,160.08,3.61]
[1752352752923,5.40462109,160.09,160.08,9.8547]
[1752352753523,3.45,160.09,160.08,9.8547]
[1752352754224,3.45,160.09,160.08,3.61]
[1752352755320,9.6943,160.09,160.08,3.61]
[1752352756125,11.64892109,160.09,160.08,3.61]
[1752352757420,9.6947,160.08,160.07,0.04131341]
[1752352757719,11.64932109,160.08,160.07,0.04131341]
[1752352758526,11.64932109,160.08,160.02,7.0038299]
[1752352758527,3.45,160.05,160.02,3.61]
[1752352758719,1.95462109,160.03,160.02,3.61]
[1752352758920,5.40462109,160.03,160.02,3.61]
[1752352759827,3.45,160.03,160.02,3.61]
[1752352760226,3.45,160.03,160.02,9.857]
[1752352760830,3.45,160.02,160.01,3.61]
[1752352761032,5.40462109,160.02,159.99,3.61]
[1752352761226,5.40462109,160.01,159.99,3.61]
[1752352761529,3.45,160.01,160.0,9.8578]
[1752352764827,5.40462109,160.01,160.0,9.8578]
[1752352765233,5.40462109,160.01,160.0,3.61]
[1752352765531,3.45,160.0,159.99,3.61]
[1752352765726,5.40462109,160.0,159.99,3.61]
[1752352766332,5.40462109,160.0,159.99,9.8582]
[1752352769843,5.40462109,160.0,159.99,3.61]
[1752352770337,3.45,159.99,159.98,6.2486]
[1752352770639,3.45,159.99,159.94,1.95462109]
[1752352770842,1.95462109,159.97,159.95,3.61]
[1752352771037,3.45,159.96,159.95,3.61]
[1752352771233,3.45,159.96,159.87,10.50574486]
[1752352771234,5.40462109,159.96,159.94,3.61]
[1752352771437,3.45,159.95,159.93,3.61]
[1752352771634,3.45,159.95,159.94,3.61]
[1752352771841,3.45,159.94,159.89,1.95462109]
[1752352772344,3.45,159.93,159.9,1.95462109]
[1752352772542,1.99783606,159.96,159.93,3.61]
[1752352772746,3.45,159.97,159.95,3.61]
[1752352773042,179.48,160.0,159.95,3.61]
[1752352773043,0.04514882,159.96,159.95,3.61]
[1752352773237,3.49514882,159.96,159.95,9.8597]
[1752352775240,3.49514882,159.96,159.95,3.61]
[1752352778946,3.49514882,159.96,159.95,9.8597]
[1752352783243,3.49514882,159.96,159.95,3.61]
[1752352783649,3.59,159.95,159.94,3.57]
[1752352785545,3.59,159.95,159.93,3.57]
[1752352785743,3.59,159.95,159.89,3.57]
[1752352786145,3.59,159.92,159.91,3.57]
[1752352786951,9.8409,159.92,159.91,1.3468056]
[1752352787148,6.2509,159.92,159.89,6.2519]
[1752352787352,3.59,159.9,159.81,18.7648]
[1752352787553,3.59,159.9,159.83,3.06439005]
[1752352787850,0.04208139,159.87,159.86,6.2533]
[1752352788851,0.04208139,159.87,159.86,9.8233]
[1752352790356,3.59,159.94,159.86,3.57]
[1752352790550,3.59,159.92,159.86,3.57]
[1752352790745,3.06439005,159.92,159.86,3.57]
[1752352790946,3.59,159.89,159.88,3.57]
[1752352792448,9.8421,159.89,159.88,3.57]
[1752352793250,3.63210765,159.9,159.88,3.57]
[1752352793854,3.63210765,159.9,159.89,6.2521]
[1752352794055,3.63210765,159.9,159.89,9.8221]
[1752352796049,0.04210765,159.9,159.89,9.8221]
[1752352800357,3.63210765,159.9,159.89,9.8221]
[1752352802260,0.04210765,159.9,159.89,9.8221]
[1752352803158,543.61,159.95,159.89,3.57]
[1752352803360,540.02,159.95,159.91,3.06439005]
[1752352803559,3.59,159.94,159.92,3.57]
[1752352804162,3.59,159.94,159.93,6.2505]
[1752352804462,3.59,159.94,159.93,3.57]
[1752352807061,9.8401,159.94,159.93,3.57]
[1752352807256,9.8401,159.94,159.9,3.06439005]
[1752352807453,3.45,159.93,159.91,9.8411]
[1752352807658,3.45,159.93,159.92,3.59]
[1752352808666,3.45,159.93,159.92,9.8409]
[1752352810266,725.8499,159.95,159.92,9.8409]
[1752352810569,3.45,159.94,159.93,3.59]
[1752352812164,9.7001,159.94,159.93,3.59]
[1752352818164,6.2505,159.93,159.92,3.62939514]
[1752352818366,9.7005,159.93,159.92,0.03939514]
[1752352818969,9.7003,159.94,159.92,3.62939514]
[1752352819670,3.45,159.93,159.92,3.62939514]
[1752352820069,9.7005,159.93,159.92,3.62939514]
[1752352820562,3.45,159.93,159.92,3.62939514]
[1752352821560,9.7005,159.93,159.92,3.62939514]
[1752352821965,3.45,159.93,159.92,3.62939514]
[1752352822167,3.45,159.93,159.92,9.88029514]
[1752352822870,179.48,159.97,159.94,3.59]
[1752352823071,3.45,159.96,159.94,3.59]
[1752352823564,3.45,159.95,159.94,3.59]
[1752352823766,3.45,159.96,159.94,3.59]
[1752352823961,9.6995,159.96,159.94,3.59]
[1752352824968,3.45,159.96,159.94,6.2501]
[1752352825167,3.45,159.96,159.95,3.59]
[1752352828470,179.48,159.97,159.95,9.8397]
[1752352828674,182.93,159.97,159.95,6.2497]
[1752352828974,182.93,159.97,159.96,3.59]
[1752352829474,9.6984,159.99,159.97,3.59]
[1752352830169,3.45,159.99,159.97,6.65439005]
[1752352830373,3.45,159.99,159.98,3.59]
[1752352830766,3.45,159.99,159.97,3.59]
[1752352831574,9.6985,159.99,159.97,3.59]
[1752352831774,3.45,159.98,159.97,3.59]
[1752352833179,6.2485,159.99,159.97,6.249]
[1752352833376,9.6985,159.99,159.98,3.59]
[1752352833779,3.45,159.99,159.98,3.59]
[1752352836982,3.45,159.99,159.98,9.8386]
[1752352837580,3.45,159.99,159.98,3.59]
[1752352838182,3.45,159.99,159.98,9.8386]
[1752352838778,3.62,160.0,159.99,3.34]
[1752352838980,3.62,160.0,159.99,9.5882]
[1752352839179,3.62,160.0,159.99,3.34]
[1752352840682,3.62,160.0,159.99,9.5882]
[1752352841082,183.12,160.01,159.98,3.34]
[1752352841279,183.12,160.01,160.0,3.34]
[1752352841486,183.12,160.01,160.0,9.5878]
[1752352842688,179.5,160.01,160.0,9.5878]
[1752352842885,183.06,160.03,160.01,9.5873]
[1752352843083,183.06,160.03,160.02,3.34]
[1752352845288,189.3066,160.03,160.02,3.34]
[1752352851293,3.06439005,160.08,160.03,3.34]
[1752352851294,3.62,160.08,160.03,3.34]
[1752352851491,3.62,160.06,160.03,3.34]
[1752352851990,3.62,160.05,160.03,3.34]
[1752352852292,183.04,160.04,160.03,3.34]
[1752352852488,189.2862,160.04,160.03,3.34]
[1752352852794,3.62,160.03,160.0,3.34]
[1752352853691,3.62,160.03,159.99,6.2481]
[1752352853894,9.867,160.02,160.01,3.34]
[1752352857897,179.42,160.04,159.98,6.2484]
[1752352857898,6.2478,160.0,159.98,6.2484]
[1752352858095,3.62,160.0,159.98,6.2484]
[1752352858495,3.62,160.0,159.99,3.34]
[1752352860698,3.62,160.0,159.97,3.34]
[1752352861297,6.2485,159.99,159.97,3.34]
[1752352861497,3.62,160.0,159.97,3.34]
[1752352861898,6.2485,159.99,159.97,3.34]
[1752352862097,3.62,159.98,159.97,3.34]
[1752352864707,3.62,159.98,159.97,9.589]
[1752352865809,3.62,159.98,159.97,3.34]
[1752352868010,3.62,159.98,159.97,9.589]
[1752352869513,3.62,159.98,159.96,9.8092]
[1752352870012,3.62,159.98,159.97,3.56]
[1752352873110,3.62,159.98,159.97,9.809]
[1752352880124,3.62,159.98,159.97,3.56]
[1752352882027,3.33,159.98,159.93,7.19577245]
[1752352882327,3.33,159.96,159.94,3.56]
[1752352882721,3.33,159.96,159.95,6.2497]
[1752352883024,3.33,159.96,159.95,9.8097]
[1752352888422,3.33,159.96,159.95,6.2497]
[1752352889428,3.33,159.96,159.95,9.8097]
[1752352896824,3.33,159.96,159.95,11.76989707]
[1752352897340,3.37,159.99,159.96,3.67]
[1752352897527,3.37,159.99,159.96,5.63019707]
[1752352897731,3.37,159.99,159.97,9.9188]
[1752352898238,3.37,159.99,159.97,3.67]
[1752352898637,3.37,159.99,159.98,6.2486]
[1752352899339,3.37,159.99,159.98,3.67]
[1752352900133,3.37,159.99,159.97,6.2488]
[1752352900341,5.33019707,159.99,159.98,6.2486]
[1752352902436,3.37,159.99,159.98,6.2486]
[1752352902636,5.33019707,159.99,159.98,6.2486]
[1752352903736,1.96019707,159.99,159.97,9.9188]
[1752352904040,3.37,159.98,159.97,9.9188]
[1752352914347,9.6186,159.98,159.97,3.67]
[1752352914547,5.33019707,159.98,159.97,3.67]
[1752352914945,3.37,159.98,159.97,3.67]
[1752352915146,5.33019707,159.98,159.97,3.67]
[1752352917249,11.57879707,159.98,159.96,6.2492]
[1752352917448,3.37,159.97,159.96,6.2492]
[1752352918350,3.37,159.97,159.96,9.9192]
[1752352920957,3.37,159.97,159.96,3.67]
[1752352922352,3.37,159.97,159.95,3.67]
[1752352922353,3.37,159.96,159.95,3.67]
[1752352922553,3.37,159.95,159.93,8.90557538]
[1752352922757,6.2501,159.94,159.93,8.90557538]
[1752352922959,9.6201,159.94,159.93,8.90557538]
[1752352923160,9.6201,159.94,159.93,3.67]
[1752352923369,6.2505,159.93,159.92,0.04141004]
[1752352923559,11.58069707,159.93,159.92,0.04141004]
[1752352923750,5.33019707,159.93,159.92,0.04141004]
[1752352923955,5.33019707,159.93,159.92,3.71141004]
[1752352924854,5.33019707,159.93,159.92,9.96231004]
[1752352926159,5.33019707,159.93,159.92,3.71141004]
[1752352926863,3.37,159.93,159.92,3.71141004]
[1752352928063,3.37,159.93,159.92,9.96231004]
[1752352936466,1.96019707,159.95,159.93,6.2503]
[1752352936669,3.59,159.94,159.93,9.7603]
[1752352937767,3.59,159.93,159.92,6.29221004]
[1752352937965,5.55019707,159.93,159.92,0.04141004]
[1752352939373,11.80069707,159.93,159.92,0.04141004]
[1752352941571,3.59,159.92,159.88,6.2522]
[1752352941772,3.59,159.89,159.88,9.7622]
[1752352941963,5.55019707,159.89,159.88,9.7622]
[1752352943270,3.59,159.89,159.88,3.51]
[1752352944560,3.59,159.89,159.88,9.7625]
[1752352946478,3.59,159.88,159.87,3.51]
[1752352947467,3.59,159.88,159.87,9.7629]
[1752352947668,3.59,159.87,159.85,3.51]
[1752352947868,1.96019707,159.86,159.85,3.51]
[1752352948067,5.55019707,159.86,159.85,9.7636]
[1752352948567,5.55019707,159.86,159.85,3.51]
[1752352948774,3.59,159.85,159.83,5.23557538]
[1752352949075,3.59,159.84,159.83,11.48977538]
[1752352949467,3.59,159.84,159.83,14.99977538]
[1752352949666,3.59,159.84,159.83,11.48977538]
[1752352950070,3.59,159.84,159.83,14.99977538]
[1752352950267,5.55019707,159.84,159.83,14.99977538]
[1752352950974,3.59,159.84,159.83,9.7642]
[1752352955179,0.04575933,159.85,159.84,9.764]
[1752352955478,0.04575933,159.85,159.84,11.72419707]
[1752352956670,3.48575933,159.85,159.84,9.764]
[1752352959478,0.04575933,159.85,159.84,9.764]
[1752352959673,0.04575933,159.85,159.84,11.72419707]
[1752352965081,3.48575933,159.85,159.84,11.72419707]
[1752352965283,0.04575933,159.85,159.84,11.72419707]
[1752352966182,0.04575933,159.85,159.84,9.764]
[1752352966477,3.48575933,159.85,159.84,11.72419707]
[1752352972383,3.48575933,159.85,159.82,3.36]
[1752352972674,3.48575933,159.85,159.82,5.32019707]
[1752352972879,3.48575933,159.85,159.84,3.36]
[1752352973676,9.73935933,159.85,159.83,6.2544]
[1752352973876,3.44,159.84,159.83,9.6144]
[1752352974378,3.44,159.84,159.83,3.36]
[1752352975183,3.44,159.84,159.83,9.6144]
[1752352975481,3.48575933,159.85,159.84,3.36]
[1752352975983,3.48575933,159.85,159.84,9.614]
[1752352976480,3.44,159.92,159.86,6.2529]
[1752352976676,1.96019707,159.89,159.87,3.36]
[1752352976882,3.44,159.88,159.87,3.36]
[1752352977384,3.44,159.88,159.87,9.6129]
[1752352977785,1.96199326,159.97,159.92,3.36]
[1752352977988,7.16545176,159.97,159.93,5.32199326]
[1752352978185,6.2496,159.96,159.93,1.96092789]
[1752352978484,6.2496,159.96,159.94,3.36]
[1752352979787,3.44,159.95,159.94,3.36]
[1752352980287,9.6897,159.95,159.94,3.36]
[1752352980584,3.44,159.96,159.93,0.04505849]
[1752352980777,9.6901,159.94,159.93,0.04505849]
[1752352981486,6.2516,159.91,159.89,3.36]
[1752352981689,9.6916,159.91,159.9,3.36]
[1752352983489,3.44,159.91,159.9,3.36]
[1752352986491,9.6913,159.91,159.9,3.36]
[1752352988593,3.44,159.91,159.9,3.36]
[1752352990095,9.6913,159.91,159.9,3.36]
[1752352990694,3.44,159.91,159.9,3.36]
[1752352991998,9.6913,159.91,159.9,3.36]
[1752352998002,3.44,159.91,159.9,3.36]
[1752353000797,3.44,159.91,159.9,9.6117]
[1752353001199,3.44,159.91,159.9,3.36]
[1752353001904,3.44,159.91,159.9,9.6117]
[1752353002606,3.44,159.91,159.9,3.36]
[1752353003310,3.44,159.91,159.9,9.6117]
[1752353004301,3.44,159.91,159.9,3.36]
[1752353004907,3.44,159.91,159.9,9.6117]
[1752353005111,0.04009362,159.92,159.9,5.28202426]
[1752353005313,0.04009362,159.92,159.91,5.28202426]
[1752353005606,0.04009362,159.92,159.91,11.53332426]
[1752353006812,0.04009362,159.92,159.91,9.5713]
[1752353020224,0.04009362,159.92,159.91,14.82758549]
[1752353022226,3.37009362,159.92,159.91,14.82758549]
[1752353022727,0.04009362,159.92,159.91,14.82758549]
[1752353026934,0.04009362,159.92,159.91,16.7888013]
[1752353027733,0.04009362,159.92,159.91,11.53251581]
[1752353028433,0.04009362,159.92,159.91,16.7888013]
[1752353036140,0.04009362,159.92,159.91,11.53251581]
[1752353037238,0.04009362,159.92,159.91,16.7888013]
[1752353045643,0.04009362,159.92,159.91,16.78864279]
[1752353046948,3.48,159.95,159.94,3.41]
[1752353047143,3.48,159.95,159.94,5.3710573]
[1752353048649,3.48,159.95,159.94,5.37062043]
[1752353049648,3.48,159.95,159.94,11.62072043]
[1752353050348,3.48,159.95,159.94,5.37062043]
[1752353055554,9.7297,159.95,159.94,5.37062043]
[1752353058356,9.7297,159.95,159.94,3.41]
[1752353059551,6.2497,159.95,159.94,3.41]
[1752353059760,6.2497,159.95,159.92,5.26623474]
[1752353059761,9.7305,159.93,159.92,3.41]
[1752353060155,9.7305,159.93,159.91,3.41]
[1752353060459,3.48,159.92,159.91,3.41]
[1752353062858,3.48,159.92,159.91,9.6613]
[1752353063454,3.48,159.92,159.91,14.92753474]
[1752353063861,9.7303,159.94,159.91,14.92753474]
[1752353064056,3.48,159.93,159.92,3.41]
[1752353070163,3.48,159.93,159.92,9.6609]
[1752353071362,3.48,159.95,159.93,6.2503]
[1752353071562,3.48,159.95,159.94,3.41]
[1752353076168,3.48,159.95,159.94,9.6601]
[1752353077667,6.2495,159.96,159.94,9.6601]
[1752353077860,3.41,159.96,159.95,3.67]
[1752353079770,3.41,159.96,159.95,9.9197]
[1752353080271,3.41,159.96,159.95,11.88135034]
[1752353081568,3.41,159.96,159.95,11.88020696]
[1752353083269,3.41,159.98,159.96,6.2493]
[1752353083469,3.41,159.98,159.97,5.63050696]
[1752353084577,185.8875,160.01,159.97,1.96050696]
[1752353084782,3.41,160.0,159.99,3.67]
[1752353085283,9.6578,160.0,159.99,3.67]
[1752353085878,3.41,160.0,159.99,3.67]
[1752353087177,9.6578,160.0,159.99,3.67]
[1752353096488,6.2483,159.99,159.98,3.67]
[1752353096688,9.6583,159.99,159.98,3.67]
[1752353100295,3.41,159.98,159.95,3.67]
[1752353100496,3.41,159.95,159.93,3.67]
[1752353100693,3.41,159.95,159.86,10.50474654]
[1752353100694,3.41,159.93,159.92,3.67]
[1752353100894,3.41,159.91,159.89,8.92405107]
[1752353101093,1.96050696,159.9,159.88,5.25405107]
[1752353101288,3.41,159.89,159.86,7.21455803]
[1752353101493,6.2525,159.88,159.87,0.03963772]
[1752353101695,6.2525,159.88,159.87,3.70963772]
[1752353101895,3.41,159.89,159.87,3.70963772]
[1752353102200,6.2525,159.88,159.87,3.70963772]
[1752353104801,9.6625,159.88,159.87,3.70963772]
[1752353107908,6.2522,159.89,159.87,3.70963772]
[1752353108210,9.8222,159.89,159.87,3.70963772]
[1752353110217,3.57,159.89,159.87,3.70963772]
[1752353110706,8.21280696,159.89,159.87,3.70963772]
[1752353111007,5.53050696,159.88,159.87,0.03963772]
[1752353111410,11.78300696,159.88,159.87,0.03963772]
[1752353112208,9.8225,159.88,159.87,0.03963772]
[1752353112409,3.57,159.88,159.87,3.53963772]
[1752353112607,5.53050696,159.88,159.87,3.53963772]
[1752353113609,11.78300696,159.88,159.87,3.53963772]
[1752353113806,11.78300696,159.88,159.87,0.03963772]
[1752353118710,9.8225,159.88,159.87,3.53963772]
[1752353121008,11.78300696,159.88,159.87,3.53963772]
[1752353124313,11.78300696,159.88,159.87,0.03963772]
[1752353127128,11.78300696,159.88,159.87,3.53963772]
[1752353128628,11.78300696,159.88,159.87,0.03963772]
[1752353129419,11.78300696,159.88,159.87,3.53963772]
[1752353134229,5.53050696,159.88,159.87,3.53963772]
[1752353135433,5.53050696,159.88,159.87,9.79253772]
[1752353136028,5.53050696,159.88,159.87,3.53963772]
[1752353138430,5.53050696,159.88,159.87,9.79253772]
[1752353138626,5.53050696,159.88,159.87,3.53963772]
[1752353139124,11.78300696,159.88,159.87,0.03963772]
[1752353147842,5.53050696,159.88,159.87,0.03963772]
[1752353149139,11.78300696,159.88,159.87,0.03963772]
[1752353149342,3.32,159.87,159.84,3.45]
[1752353149636,3.32,159.87,159.85,3.45]
[1752353150034,3.32,159.88,159.85,3.45]